fUST/lending_fUST_20250204
["ID","MTS","AMOUNT","RATE_DAILY","PERIOD"]
[351577269,1738636240362,-198.76591738,0.00016438,2]
[351577270,1738636240376,-300.0,0.00016438,2]
[351577271,1738636240444,-51.21348779,0.00016438,2]
[351577272,1738636240456,-648.23767574,0.00016438,2]
[351577273,1738636240465,-502.62796928,0.00016438,2]
[351577274,1738636240475,-500.0,0.00016438,2]
[351577275,1738636240484,-505.00384219,0.00016438,2]
[351577276,1738636240494,-500.0,0.00016438,2]
[351577277,1738636240503,-500.83879673,0.00016438,2]
[351577278,1738636240513,-503.79194481,0.00016438,2]
[351577279,1738636240523,-502.39019049,0.00016438,2]
[351577280,1738636240532,-505.65713933,0.00016438,2]
[351577281,1738636240541,-500.0,0.00016438,2]
[351577282,1738636240551,-503.39362914,0.00016438,2]
[351577283,1738636240560,-500.0,0.00016438,2]
[351577284,1738636240569,-500.0,0.00016438,2]
[351577285,1738636240578,-500.0,0.00016438,2]
[351577286,1738636240587,-504.2599559,0.00016438,2]
[351577287,1738636240597,-505.48788868,0.00016438,2]
[351577288,1738636240606,-501.57741273,0.00016438,2]
[351577289,1738636240615,-504.46701985,0.00016438,2]
[351577290,1738636240625,-500.0,0.00016438,2]
[351577291,1738636240634,-503.72480618,0.00016438,2]
[351577292,1738636240643,-505.66600178,0.00016438,2]
[351577293,1738636240653,-500.0,0.00016438,2]
[351577294,1738636240662,-507.60539476,0.00016438,2]
[351577295,1738636240671,-512.66101251,0.00016438,2]
[351577296,1738636240681,-878.52,0.00016438,2]
[351577297,1738636240690,-501.45053063,0.00016438,2]
[351577298,1738636240699,-502.08920259,0.00016438,2]
[351577299,1738636240709,-500.0,0.00016438,2]
[351577300,1738636240719,-357.24289648,0.00016438,2]
[351577301,1738636240729,-501.71020396,0.00016438,2]
[351577302,1738636240738,-500.0,0.00016438,2]
[351577303,1738636240747,-500.0,0.00016438,2]
[351577304,1738636240757,-513.23367661,0.00016438,2]
[351577305,1738636240766,-502.98894895,0.00016438,2]
[351577306,1738636240776,-504.92777176,0.00016438,2]
[351577307,1738636240786,-362.51474851,0.00016438,2]
[351577325,1738636243303,-139.07902249,0.00016438,2]
[351577326,1738636243312,-500.0,0.00016438,2]
[351577327,1738636243322,-210.4478067,0.00016438,2]
[351577328,1738636243334,-292.41227044,0.00016438,2]
[351577329,1738636243344,-388.03621846,0.00016438,2]
[351577330,1738636243357,-93.70783147,0.00016438,2]
[351577331,1738636243367,-502.83722884,0.00016438,2]
[351577332,1738636243377,-504.57212604,0.00016438,2]
[351577333,1738636243387,-559.00709499,0.00016438,2]
[351577334,1738636243398,-501.76286887,0.00016438,2]
[351577335,1738636243407,-544.02,0.00016438,2]
[351577336,1738636243417,-500.0,0.00016438,2]
[351577337,1738636243427,-530.13,0.00016438,2]
[351577338,1738636243437,-642.84692021,0.00016438,2]
[351577339,1738636243447,-500.0,0.00016438,2]
[351577341,1738636243456,-500.0,0.00016438,2]
[351577342,1738636243467,-500.0,0.00016438,2]
[351577343,1738636243477,-505.19303498,0.00016438,2]
[351577344,1738636243487,-219.61021015,0.00016438,2]
[351577345,1738636243497,-506.430065,0.00016438,2]
[351577346,1738636243507,-369.22934783,0.00016438,2]
[351577347,1738636243516,-536.8126404,0.00016438,2]
[351577349,1738636243527,-503.1356819,0.00016438,2]
[351577350,1738636243537,-500.0,0.00016438,2]
[351577351,1738636243547,-8857.42,0.00016438,2]
[351577352,1738636243556,-500.0,0.00016438,2]
[351577353,1738636243566,-502.14382917,0.00016438,2]
[351577354,1738636243575,-345.26212452,0.00016438,2]
[351577355,1738636243585,-500.0,0.00016438,2]
[351577356,1738636243595,-5948.52,0.00016438,2]
[351577357,1738636243605,-500.0,0.00016438,2]
[351577358,1738636243616,-503.09205348,0.00016438,2]
[351577359,1738636243626,-2315.55,0.00016438,2]
[351577360,1738636243635,-500.0,0.00016438,2]
[351577361,1738636243645,-1085.44,0.00016438,2]
[351577362,1738636243655,-504.8445002,0.00016438,2]
[351577363,1738636243665,-500.0,0.00016438,2]
[351577364,1738636243674,-502.91692518,0.00016438,2]
[351577365,1738636243684,-147.0110735,0.00016438,2]
[351577366,1738636243697,-354.70248361,0.00016438,2]
[351577367,1738636243707,-500.0,0.00016438,2]
[351577368,1738636243717,-505.11372031,0.00016438,2]
[351577369,1738636243832,-500.0,0.00016438,2]
[351577370,1738636243843,-1165.4,0.00016438,2]
[351577371,1738636243853,-500.0,0.00016438,2]
[351577372,1738636243863,-507.24144897,0.00016438,2]
[351577373,1738636243877,-2749.66,0.00016438,2]
[351577374,1738636243886,-500.0,0.00016438,2]
[351577375,1738636243896,-501.5156817,0.00016438,2]
[351577376,1738636243906,-1974.52,0.00016438,2]
[351577377,1738636243916,-500.0,0.00016438,2]
[351577378,1738636243925,-503.57894759,0.00016438,2]
[351577379,1738636243935,-502.16606918,0.00016438,2]
[351577380,1738636243945,-500.0,0.00016438,2]
[351577381,1738636243955,-504.14589157,0.00016438,2]
[351577382,1738636243965,-509.25241346,0.00016438,2]
[351577383,1738636243974,-506.5088933,0.00016438,2]
[351577384,1738636243984,-1292.94,0.00016438,2]
[351577385,1738636243994,-504.12129317,0.00016438,2]
[351577386,1738636244017,-500.0,0.00016438,2]
[351577387,1738636244026,-500.0,0.00016438,2]
[351577388,1738636244037,-648.14467895,0.00016438,2]
[351577389,1738636244046,-500.0,0.00016438,2]
[351577390,1738636244056,-501.25260614,0.00016438,2]
[351577391,1738636244066,-417.49863121,0.00016438,2]
[351577392,1738636244075,-500.0,0.00016438,2]
[351577393,1738636244085,-723.09,0.00016438,2]
[351577394,1738636244095,-500.0,0.00016438,2]
[351577395,1738636244104,-500.83085211,0.00016438,2]
[351577396,1738636244113,-2681.39,0.00016438,2]
[351577397,1738636244122,-500.0,0.00016438,2]
[351577398,1738636244131,-500.0,0.00016438,2]
[351577399,1738636244141,-952.88,0.00016438,2]
[351577400,1738636244150,-506.64754514,0.00016438,2]
[351577401,1738636244159,-500.0,0.00016438,2]
[351577402,1738636244168,-500.73384987,0.00016438,2]
[351577403,1738636244178,-504.96137251,0.00016438,2]
[351577404,1738636244187,-500.82314003,0.00016438,2]
[351577405,1738636244196,-1440.95,0.00016438,2]
[351577406,1738636244206,-505.55721014,0.00016438,2]
[351577407,1738636244216,-501.86230956,0.00016438,2]
[351577408,1738636244225,-500.0,0.00016438,2]
[351577409,1738636244234,-500.0,0.00016438,2]
[351577410,1738636244244,-500.0,0.00016438,2]
[351577411,1738636244253,-1251.27,0.00016438,2]
[351577412,1738636244262,-500.0,0.00016438,2]
[351577413,1738636244272,-500.0,0.00016438,2]
[351577414,1738636244281,-507.3857364,0.00016438,2]
[351577415,1738636244291,-500.0,0.00016438,2]
[351577416,1738636244301,-500.0,0.00016438,2]
[351577417,1738636244310,-500.0,0.00016438,2]
[351577418,1738636244320,-500.0,0.00016438,2]
[351577419,1738636244329,-500.0,0.00016438,2]
[351577420,1738636244339,-502.43826854,0.00016438,2]
[351577421,1738636244349,-500.0,0.00016438,2]
[351577422,1738636244358,-500.0,0.00016438,2]
[351577423,1738636244368,-500.0,0.00016438,2]
[351577424,1738636244377,-2367.59,0.00016438,2]
[351577425,1738636244386,-500.0,0.00016438,2]
[351577426,1738636244396,-363.32,0.00016438,2]
[351577427,1738636244406,-500.0,0.00016438,2]
[351577428,1738636244416,-808.13,0.00016438,2]
[351577429,1738636244426,-500.0,0.00016438,2]
[351577430,1738636244435,-8364.07243205,0.00016438,2]
[351577431,1738636244448,-1000.9,0.00016438,2]
[351577432,1738636244466,-353.33756795,0.00016438,2]
[351577433,1738636244475,-387.98885446,0.00016438,2]
[351577438,1738636246378,-160.06470928,0.00016274,2]
[351577439,1738636246388,-384.9797844,0.00016338,2]
[351577440,1738636246399,-3368.85114554,0.00016438,2]
[351577441,1738636246408,-500.0,0.00016438,2]
[351577442,1738636246418,-500.0,0.00016438,2]
[351577443,1738636246428,-501.37497972,0.00016438,2]
[351577444,1738636246438,-500.0,0.00016438,2]
[351577445,1738636246447,-23311.29,0.00016438,2]
[351577446,1738636246456,-2090.75,0.00016438,2]
[351577447,1738636246468,-504.72,0.00016438,2]
[351577448,1738636246478,-504.54085856,0.00016438,2]
[351577449,1738636246487,-501.98155143,0.00016438,2]
[351577450,1738636246496,-505.82595987,0.00016438,2]
[351577451,1738636246505,-503.45030068,0.00016438,2]
[351577452,1738636246514,-500.0,0.00016438,2]
[351577453,1738636246524,-500.0,0.00016438,2]
[351577454,1738636246533,-500.0,0.00016438,2]
[351577455,1738636246543,-500.0,0.00016438,2]
[351577456,1738636246553,-1534.15,0.00016438,2]
[351577457,1738636246563,-1274.72,0.00016438,2]
[351577458,1738636246572,-616.15480302,0.00016438,2]
[351577459,1738636246581,-1177.68,0.00016438,2]
[351577460,1738636246591,-511.97234,0.00016438,2]
[351577461,1738636246600,-500.0,0.00016438,2]
[351577462,1738636246609,-500.0,0.00016438,2]
[351577463,1738636246618,-2098.91,0.00016438,2]
[351577464,1738636246627,-835.97,0.00016438,2]
[351577465,1738636246636,-684.04,0.00016438,2]
[351577466,1738636246645,-504.43016301,0.00016438,2]
[351577467,1738636246654,-540.68848375,0.00016438,2]
[351577468,1738636246663,-500.0,0.00016438,2]
[351577469,1738636246673,-1415.56,0.00016438,2]
[351577470,1738636246682,-555.85055047,0.00016438,2]
[351577471,1738636246691,-503.56072273,0.00016438,2]
[351577472,1738636246700,-500.0,0.00016438,2]
[351577473,1738636246709,-1418.98,0.00016438,2]
[351577474,1738636246721,-501.49852226,0.00016438,2]
[351577475,1738636246730,-500.0,0.00016438,2]
[351577476,1738636246740,-500.0,0.00016438,2]
[351577477,1738636246748,-1093.69,0.00016438,2]
[351577478,1738636246757,-500.0,0.00016438,2]
[351577479,1738636246766,-505.47143432,0.00016438,2]
[351577480,1738636246776,-500.0,0.00016438,2]
[351577481,1738636246786,-503.15869411,0.00016438,2]
[351577482,1738636246795,-504.15472319,0.00016438,2]
[351577483,1738636246804,-500.0,0.00016438,2]
[351577484,1738636246814,-500.0,0.00016438,2]
[351577485,1738636246823,-500.0,0.00016438,2]
[351577486,1738636246832,-500.0,0.00016438,2]
[351577487,1738636246841,-500.0,0.00016438,2]
[351577488,1738636246850,-500.0,0.00016438,2]
[351577489,1738636246860,-500.0,0.00016438,2]
[351577490,1738636246874,-479.85535147,0.00016438,2]
[351577491,1738636246884,-502.84463172,0.00016438,2]
[351577492,1738636246894,-502.3966307,0.00016438,2]
[351577493,1738636246903,-503.49413617,0.00016438,2]
[351577494,1738636246913,-502.94294159,0.00016438,2]
[351577495,1738636246923,-500.0,0.00016438,2]
[351577496,1738636246933,-500.0,0.00016438,2]
[351577497,1738636246944,-955.69,0.00016438,2]
[351577498,1738636246956,-1265.03,0.00016438,2]
[351577499,1738636246967,-500.0,0.00016438,2]
[351577500,1738636246977,-1582.68,0.00016438,2]
[351577501,1738636246986,-3402.25,0.00016438,2]
[351577502,1738636246995,-500.0,0.00016438,2]
[351577503,1738636247004,-498.8662032,0.00016438,2]
[351577504,1738636247021,-1.1337968,0.00016438,2]
[351577505,1738636247031,-503.98063665,0.00016438,2]
[351577506,1738636247040,-445.41744277,0.00016438,2]
[351577507,1738636247052,-54.58255723,0.00016438,2]
[351577508,1738636247061,-500.0,0.00016438,2]
[351577509,1738636247071,-503.62025806,0.00016438,2]
[351577510,1738636247080,-424.53784249,0.00016438,2]
[351577511,1738636247090,-287.16090236,0.00016438,2]
[351577512,1738636247099,-500.0,0.00016438,2]
[351577513,1738636247108,-505.28544165,0.00016438,2]
[351577514,1738636247117,-500.0,0.00016438,2]
[351577515,1738636247126,-365.65864732,0.00016438,2]
[351577516,1738636247136,-541.12900684,0.00016438,2]
[351577517,1738636247145,-505.86034055,0.00016438,2]
[351577518,1738636247154,-500.0,0.00016438,2]
[351577519,1738636247163,-1196.37,0.00016438,2]
[351577520,1738636247172,-500.0,0.00016438,2]
[351577521,1738636247182,-288.02131669,0.00016438,2]
[351577522,1738636247194,-213.42407773,0.00016438,2]
[351577523,1738636247204,-500.0,0.00016438,2]
[351577524,1738636247213,-156.0,0.00016469,2]
[351577525,1738636247224,-156.0,0.00016469,2]
[351577526,1738636247233,-156.0,0.00016469,2]
[351577527,1738636247242,-156.0,0.00016469,2]
[351577528,1738636247251,-156.0,0.00016469,2]
[351577529,1738636247261,-156.0,0.00016469,2]
[351577530,1738636247270,-156.0,0.00016469,2]
[351577531,1738636247279,-156.0,0.00016469,2]
[351577532,1738636247289,-156.0,0.00016469,2]
[351577533,1738636247298,-156.0,0.00016469,2]
[351577534,1738636247307,-156.0,0.00016469,2]
[351577535,1738636247317,-156.0,0.00016469,2]
[351577536,1738636247326,-156.0,0.00016469,2]
[351577537,1738636247335,-156.0,0.00016469,2]
[351577538,1738636247344,-156.0,0.00016469,2]
[351577539,1738636247353,-156.0,0.00016469,2]
[351577540,1738636247362,-156.0,0.00016469,2]
[351577541,1738636247371,-153.0,0.00016469,2]
[351577542,1738636247381,-153.0,0.00016469,2]
[351577543,1738636247390,-153.0,0.00016469,2]
[351577544,1738636247399,-153.0,0.00016469,2]
[351577545,1738636247408,-153.0,0.00016469,2]
[351577546,1738636247418,-153.0,0.00016469,2]
[351577547,1738636247428,-153.0,0.00016469,2]
[351577548,1738636247437,-156.0,0.00016469,2]
[351577549,1738636247446,-156.0,0.00016469,2]
[351577550,1738636247455,-156.0,0.00016469,2]
[351577551,1738636247466,-156.0,0.00016469,2]
[351577552,1738636247475,-156.0,0.00016469,2]
[351577553,1738636247484,-156.0,0.00016469,2]
[351577554,1738636247494,-156.0,0.00016469,2]
[351577555,1738636247503,-156.0,0.00016469,2]
[351577556,1738636247512,-156.0,0.00016469,2]
[351577557,1738636247521,-156.0,0.00016469,2]
[351577558,1738636247531,-156.0,0.00016469,2]
[351577559,1738636247540,-156.0,0.00016469,2]
[351577560,1738636247549,-156.0,0.00016469,2]
[351577561,1738636247559,-156.0,0.00016469,2]
[351577562,1738636247568,-153.0,0.00016469,2]
[351577563,1738636247578,-153.0,0.00016469,2]
[351577564,1738636247587,-153.0,0.00016469,2]
[351577565,1738636247596,-153.0,0.00016469,2]
[351577566,1738636247605,-153.0,0.00016469,2]
[351577567,1738636247614,-153.0,0.00016469,2]
[351577568,1738636247623,-156.0,0.00016469,2]
[351577569,1738636247634,-156.0,0.00016469,2]
[351577570,1738636247643,-156.0,0.00016469,2]
[351577571,1738636247652,-156.0,0.00016469,2]
[351577572,1738636247662,-156.0,0.00016469,2]
[351577573,1738636247670,-156.0,0.00016469,2]
[351577574,1738636247680,-156.0,0.00016469,2]
[351577575,1738636247689,-156.0,0.00016469,2]
[351577576,1738636247698,-156.0,0.00016469,2]
[351577577,1738636247707,-156.0,0.00016469,2]
[351577578,1738636247719,-156.0,0.00016469,2]
[351577579,1738636247728,-156.0,0.00016469,2]
[351577580,1738636247737,-156.0,0.00016469,2]
[351577581,1738636247746,-156.0,0.00016469,2]
[351577582,1738636247755,-153.0,0.00016469,2]
[351577583,1738636247764,-153.0,0.00016469,2]
[351577584,1738636247773,-153.0,0.00016469,2]
[351577585,1738636247783,-153.0,0.00016469,2]
[351577586,1738636247792,-153.0,0.00016469,2]
[351577587,1738636247801,-153.0,0.00016469,2]
[351577588,1738636247907,-501.16649318,0.00016473,2]
[351577589,1738636247919,-172.988932,0.00016473,2]
[351577590,1738636247930,-172.988932,0.00016473,2]
[351577591,1738636247939,-151.0,0.00016473,2]
[351577592,1738636247950,-156.0,0.00016503,2]
[351577593,1738636247959,-36.36176924,0.00016503,2]
[351577600,1738636503150,2000.0,0.00015011,2]
[351577601,1738636571694,276.549854,0.00013973,2]
[351577664,1738637432590,-300.0,0.00015361,2]
[351577665,1738637432599,-219.28700125,0.00015362,2]
[351577666,1738637432610,-375.0,0.00015362,2]
[351577699,1738637438400,-5716.271829,0.00015362,2]
[351577700,1738637438412,-12912.81018537,0.00015362,2]
[351577701,1738637438424,-3102.35487192,0.00015362,2]
[351577702,1738637438452,-2574.27611246,0.00015362,2]
[351577703,1738637438462,-700.0,0.00015972,2]
[351577704,1738637438472,-1000.0,0.000162,2]
[351577705,1738637438482,-1000.0,0.000162,3]
[351577706,1738637438492,-1000.0,0.000162,5]
[351577707,1738637438502,-208.10647379,0.00016338,2]
[351577708,1738637438511,-224.14,0.00016397,2]
[351577709,1738637438521,-186.0,0.000164,2]
[351577710,1738637438531,-186.0,0.000164,3]
[351577711,1738637438540,-186.0,0.000164,2]
[351577712,1738637438550,-187.27277694,0.000164,3]
[351577713,1738637438560,-499.22,0.00016437,2]
[351577714,1738637438570,-502.67862467,0.00016438,2]
[351577715,1738637438580,-500.0,0.00016438,2]
[351577716,1738637438590,-500.0,0.00016438,2]
[351577717,1738637438599,-647.70188224,0.00016438,2]
[351577718,1738637438608,-291.9793999,0.00016438,2]
[351577719,1738637438618,-501.41595584,0.00016438,2]
[351577720,1738637438628,-500.0,0.00016438,2]
[351577721,1738637438639,-499.92430052,0.00016438,2]
[351577722,1738637438648,-450.68598902,0.00016438,2]
[351577723,1738637438658,-500.0,0.00016438,2]
[351577724,1738637438667,-269.30526095,0.00016438,2]
[351577725,1738637438677,-500.0,0.00016438,2]
[351577726,1738637438687,-203.14332532,0.00016438,2]
[351577727,1738637438699,-505.3386218,0.00016438,2]
[351577728,1738637438709,-500.0,0.00016438,2]
[351577729,1738637438719,-500.0,0.00016438,2]
[351577730,1738637438728,-500.0,0.00016438,2]
[351577731,1738637438738,-316.39793236,0.00016438,2]
[351577732,1738637438748,-486.61859352,0.00016438,2]
[351577733,1738637438758,-500.0,0.00016438,2]
[351577734,1738637438768,-515.97259155,0.00016438,2]
[351577735,1738637438778,-509.76063586,0.00016438,2]
[351577736,1738637438788,-500.0,0.00016438,2]
[351577737,1738637438797,-500.0,0.00016438,2]
[351577738,1738637438806,-500.0,0.00016438,2]
[351577739,1738637438816,-500.0,0.00016438,2]
[351577740,1738637438826,-332.07376912,0.00016438,2]
[351577741,1738637438835,-500.0,0.00016438,2]
[351577742,1738637438845,-500.0,0.00016438,2]
[351577743,1738637438854,-500.0,0.00016438,2]
[351577744,1738637438864,-500.0,0.00016438,2]
[351577745,1738637438873,-500.0,0.00016438,2]
[351577746,1738637438883,-500.0,0.00016438,2]
[351577747,1738637438892,-502.33923035,0.00016438,2]
[351577748,1738637438902,-500.0,0.00016438,2]
[351577749,1738637438911,-500.0,0.00016438,2]
[351577750,1738637438920,-500.0,0.00016438,2]
[351577751,1738637438930,-425.06445523,0.00016438,2]
[351577752,1738637438940,-500.0,0.00016438,2]
[351577753,1738637438953,-500.0,0.00016438,2]
[351577754,1738637438963,-500.0,0.00016438,2]
[351577755,1738637438972,-500.0,0.00016438,2]
[351577756,1738637438981,-500.0,0.00016438,2]
[351577757,1738637438990,-556.52,0.00016438,2]
[351577758,1738637438999,-500.0,0.00016438,2]
[351577759,1738637439008,-500.0,0.00016438,2]
[351577760,1738637439018,-509.1108802,0.00016438,2]
[351577761,1738637439027,-500.0,0.00016438,2]
[351577762,1738637439036,-500.0,0.00016438,2]
[351577763,1738637439046,-500.0,0.00016438,2]
[351577764,1738637439055,-500.0,0.00016438,2]
[351577765,1738637439064,-1151.97,0.00016438,2]
[351577766,1738637439073,-500.0,0.00016438,2]
[351577767,1738637439084,-500.0,0.00016438,2]
[351577768,1738637439093,-500.0,0.00016438,2]
[351577769,1738637439104,-500.0,0.00016438,2]
[351577770,1738637439113,-500.0,0.00016438,2]
[351577771,1738637439123,-500.0,0.00016438,2]
[351577772,1738637439134,-500.0,0.00016438,2]
[351577773,1738637439144,-500.0,0.00016438,2]
[351577774,1738637439155,-578.24,0.00016438,2]
[351577775,1738637439164,-917.27,0.00016438,2]
[351577776,1738637439174,-500.0,0.00016438,2]
[351577777,1738637439184,-508.59585944,0.00016438,2]
[351577778,1738637439193,-507.76567799,0.00016438,2]
[351577779,1738637439204,-500.0,0.00016438,2]
[351577780,1738637439214,-500.0,0.00016438,2]
[351577781,1738637439223,-500.0,0.00016438,2]
[351577782,1738637439233,-500.0,0.00016438,2]
[351577783,1738637439243,-517.54274188,0.00016438,2]
[351577784,1738637439254,-500.0,0.00016438,2]
[351577785,1738637439266,-500.0,0.00016438,2]
[351577786,1738637439276,-500.0,0.00016438,2]
[351577787,1738637439286,-500.0,0.00016438,2]
[351577788,1738637439296,-500.0,0.00016438,2]
[351577789,1738637439306,-500.0,0.00016438,2]
[351577790,1738637439316,-500.0,0.00016438,2]
[351577791,1738637439325,-500.0,0.00016438,2]
[351577792,1738637439339,-500.0,0.00016438,2]
[351577793,1738637439348,-500.0,0.00016438,2]
[351577794,1738637439358,-500.0,0.00016438,2]
[351577795,1738637439367,-500.0,0.00016438,2]
[351577796,1738637439376,-500.0,0.00016438,2]
[351577797,1738637439386,-513.09933811,0.00016438,2]
[351577798,1738637439395,-500.0,0.00016438,2]
[351577799,1738637439404,-500.0,0.00016438,2]
[351577800,1738637439414,-889.01,0.00016438,2]
[351577801,1738637439423,-500.0,0.00016438,2]
[351577802,1738637439433,-500.0,0.00016438,2]
[351577803,1738637439442,-500.0,0.00016438,2]
[351577804,1738637439453,-500.0,0.00016438,2]
[351577805,1738637439463,-500.0,0.00016438,2]
[351577806,1738637439472,-504.87873502,0.00016438,2]
[351577807,1738637439482,-508.67237825,0.00016438,2]
[351577808,1738637439491,-512.42628162,0.00016438,2]
[351577809,1738637439500,-510.11064869,0.00016438,2]
[351577810,1738637439510,-500.0,0.00016438,2]
[351577811,1738637439520,-500.0,0.00016438,2]
[351577812,1738637439529,-324.84681515,0.00016438,2]
[351577813,1738637439539,-500.0,0.00016438,2]
[351577814,1738637439548,-528.88,0.00016438,2]
[351577815,1738637439557,-500.0,0.00016438,2]
[351577816,1738637439567,-500.0,0.00016438,2]
[351577817,1738637439576,-500.0,0.00016438,2]
[351577818,1738637439585,-221.94935483,0.00016438,2]
[351577819,1738637439595,-862.75,0.00016438,2]
[351577820,1738637439604,-507.45523682,0.00016438,2]
[351577821,1738637439614,-500.0,0.00016438,2]
[351577822,1738637439625,-500.0,0.00016438,2]
[351577823,1738637439634,-500.0,0.00016438,2]
[351577824,1738637439644,-501.20781837,0.00016438,2]
[351577825,1738637439653,-503.79387514,0.00016438,2]
[351577826,1738637439663,-504.55466536,0.00016438,2]
[351577827,1738637439672,-502.76708689,0.00016438,2]
[351577828,1738637439682,-500.0,0.00016438,2]
[351577829,1738637439691,-500.0,0.00016438,2]
[351577830,1738637439701,-500.0,0.00016438,2]
[351577831,1738637439710,-500.0,0.00016438,2]
[351577832,1738637439719,-500.0,0.00016438,2]
[351577833,1738637439729,-504.46276198,0.00016438,2]
[351577834,1738637439739,-542.19,0.00016438,2]
[351577835,1738637439748,-500.0,0.00016438,2]
[351577836,1738637439758,-502.23312189,0.00016438,2]
[351577837,1738637439769,-500.0,0.00016438,2]
[351577838,1738637439779,-501.59385347,0.00016438,2]
[351577839,1738637439788,-500.0,0.00016438,2]
[351577840,1738637439798,-503.78172879,0.00016438,2]
[351577841,1738637439807,-501.78556911,0.00016438,2]
[351577842,1738637439816,-503.96357399,0.00016438,2]
[351577843,1738637439826,-252.96173036,0.00016438,2]
[351577844,1738637439835,-503.82894241,0.00016438,2]
[351577845,1738637439844,-510.34636125,0.00016438,2]
[351577846,1738637439853,-166.04173472,0.00016438,2]
[351577847,1738637439862,-558.56531238,0.00016438,2]
[351577848,1738637439872,-501.19181129,0.00016438,2]
[351577849,1738637439881,-512.8260316,0.00016438,2]
[351577850,1738637439891,-501.62185845,0.00016438,2]
[351577851,1738637439900,-503.12948702,0.00016438,2]
[351577852,1738637439909,-503.26422936,0.00016438,2]
[351577853,1738637439919,-500.0,0.00016438,2]
[351577854,1738637439928,-501.94478288,0.00016438,2]
[351577855,1738637439937,-500.0,0.00016438,2]
[351577856,1738637439946,-501.37886716,0.00016438,2]
[351577857,1738637439956,-504.32034822,0.00016438,2]
[351577858,1738637439966,-502.77089488,0.00016438,2]
[351577860,1738637439975,-501.74391081,0.00016438,2]
[351577861,1738637439984,-503.24224829,0.00016438,2]
[351577862,1738637439993,-500.0,0.00016438,2]
[351577863,1738637440002,-501.84817614,0.00016438,2]
[351577865,1738637440011,-509.65387411,0.00016438,2]
[351577866,1738637440020,-500.0,0.00016438,2]
[351577868,1738637440030,-505.56769788,0.00016438,2]
[351577869,1738637440039,-502.54743563,0.00016438,2]
[351577870,1738637440048,-500.0,0.00016438,2]
[351577871,1738637440058,-8578.65,0.00016438,2]
[351577872,1738637440067,-507.18089781,0.00016438,2]
[351577874,1738637440076,-502.84887048,0.00016438,2]
[351577875,1738637440086,-505.59372199,0.00016438,2]
[351577877,1738637440095,-500.0,0.00016438,2]
[351577879,1738637440105,-5792.5,0.00016438,2]
[351577880,1738637440114,-2219.07,0.00016438,2]
[351577881,1738637440123,-500.0,0.00016438,2]
[351577882,1738637440132,-1062.48,0.00016438,2]
[351577886,1738637440289,-500.0,0.00016438,2]
[351577888,1738637440300,-500.0,0.00016438,2]
[351577890,1738637440311,-508.07441865,0.00016438,2]
[351577892,1738637440320,-503.26340398,0.00016438,2]
[351577893,1738637440331,-505.65694685,0.00016438,2]
[351577894,1738637440341,-504.97262352,0.00016438,2]
[351577895,1738637440351,-508.13201198,0.00016438,2]
[351577896,1738637440361,-1137.68,0.00016438,2]
[351577897,1738637440370,-503.86117618,0.00016438,2]
[351577898,1738637440379,-514.63598522,0.00016438,2]
[351577899,1738637440389,-501.96583531,0.00016438,2]
[351577900,1738637440398,-504.92931895,0.00016438,2]
[351577902,1738637440408,-503.87753644,0.00016438,2]
[351577904,1738637440417,-500.0,0.00016438,2]
[351577905,1738637440426,-500.0,0.00016438,2]